bitfinex/quotes_SOLUSD_20240607
["timestamp","ask_amount","ask_price","bid_price","bid_amount"]
[1717783867401,0.68349351,160.66,160.51,3.17556336]
[1717783867402,120.68349351,160.66,160.51,3.17556336]
[1717783867605,120.0,160.64,160.51,3.17556336]
[1717783867808,120.0,160.6,160.51,3.17556336]
[1717783868036,120.0,160.62,160.51,3.17556336]
[1717783868240,0.68349351,160.66,160.51,3.17556336]
[1717783868241,120.68349351,160.66,160.51,3.17556336]
[1717783868527,0.68349351,160.66,160.51,3.17556336]
[1717783868828,0.68349351,160.66,160.51,19.66146336]
[1717783869303,35.95226094,160.91,160.51,19.66146336]
[1717783869304,17.96962039,160.77,160.51,19.66146336]
[1717783869510,10.0,160.88,160.51,19.66146336]
[1717783869511,7.48649253,160.76,160.51,19.66146336]
[1717783869722,17.96962039,160.78,160.51,19.66146336]
[1717783869924,17.96962039,160.78,160.51,139.66146336]
[1717783870122,17.96962039,160.78,160.51,19.66146336]
[1717783870510,120.0,160.76,160.51,19.66146336]
[1717783870711,120.0,160.74,160.51,19.66146336]
[1717783870923,120.0,160.73,160.51,19.66146336]
[1717783871206,120.0,160.65,160.51,19.66146336]
[1717783871518,120.0,160.63,160.51,19.66146336]
[1717783871756,120.0,160.58,160.51,3.17556336]
[1717783871908,120.0,160.59,160.51,3.17556336]
[1717783872109,10.0,160.63,160.51,3.17556336]
[1717783872308,120.0,160.59,160.51,3.17556336]
[1717783872537,120.0,160.56,160.51,3.17556336]
[1717783872847,120.0,160.62,160.51,3.17556336]
[1717783873336,120.0,160.65,160.51,3.17556336]
[1717783873507,120.0,160.63,160.51,3.17556336]
[1717783873712,120.0,160.61,160.51,3.17556336]
[1717783874311,120.0,160.58,160.51,3.17556336]
[1717783874630,120.0,160.67,160.51,3.17556336]
[1717783874838,120.0,160.71,160.51,3.17556336]
[1717783875028,120.0,160.63,160.51,3.17556336]
[1717783875333,120.0,160.64,160.51,3.17556336]
[1717783875505,10.0,160.73,160.51,3.17556336]
[1717783875506,120.0,160.69,160.51,3.17556336]
[1717783875713,120.0,160.64,160.51,3.17556336]
[1717783875910,120.0,160.69,160.51,3.17556336]
[1717783876106,120.0,160.73,160.51,3.17556336]
[1717783876328,25.45863931,160.72,160.51,3.17556336]
[1717783876527,127.48743335,160.71,160.51,3.17556336]
[1717783876749,6.447,160.82,160.51,3.17556336]
[1717783876750,120.0,160.68,160.51,3.17556336]
[1717783876914,6.447,160.82,160.51,3.17556336]
[1717783877119,120.0,160.74,160.51,3.17556336]
[1717783877431,120.0,160.74,160.52,6.1284]
[1717783877927,120.0,160.61,160.51,3.17556336]
[1717783878128,120.0,160.63,160.51,3.17556336]
[1717783878341,120.0,160.6,160.51,3.17556336]
[1717783878512,423.44198238,160.88,160.51,3.17556336]
[1717783878513,8.98324672,160.87,160.51,3.17556336]
[1717783878829,120.0,160.68,160.51,3.17556336]
[1717783879036,120.0,160.67,160.51,3.17556336]
[1717783879636,120.0,160.68,160.51,3.17556336]
[1717783879835,120.0,160.66,160.51,3.17556336]
[1717783880138,8.98324672,160.84,160.51,3.17556336]
[1717783880139,120.0,160.74,160.51,3.17556336]
[1717783880345,20.47974956,160.78,160.51,3.17556336]
[1717783880629,120.0,160.7,160.51,3.17556336]
[1717783880834,120.0,160.63,160.51,2.77566336]
[1717783881040,35.9268558,160.9,160.51,2.69566336]
[1717783881041,120.0,160.59,160.51,2.69566336]
[1717783881215,120.0,160.63,160.51,2.67566336]
[1717783881422,120.0,160.58,160.51,2.67566336]
[1717783882045,120.0,160.55,160.51,2.67566336]
[1717783882413,387.5,160.64,160.51,2.67566336]
[1717783882414,120.0,160.54,160.51,2.67566336]
[1717783882616,120.0,160.52,160.51,2.67566336]
[1717783883033,397.5,160.63,160.51,2.67566336]
[1717783883034,120.0,160.55,160.51,2.67566336]
[1717783883245,20.0879733,160.67,160.51,2.67566336]
[1717783883246,120.0,160.58,160.51,2.67566336]
[1717783883551,120.0,160.54,160.51,2.67566336]
[1717783883840,120.0,160.52,160.51,2.67566336]
[1717783885140,133.51396768,160.52,160.51,2.67566336]
[1717783885345,120.0,160.36,160.34,0.823968]
[1717783885527,13.51396768,160.52,160.34,5.31825848]
[1717783885528,120.0,160.4,160.34,5.31825848]
[1717783885944,16.0175,160.52,160.34,5.31825848]
[1717783885945,120.0,160.35,160.34,5.31825848]
[1717783886533,120.0,160.43,160.34,5.31825848]
[1717783886734,120.0,160.4,160.34,5.31825848]
[1717783887049,120.0,160.36,160.34,5.31825848]
[1717783887230,120.0,160.35,160.34,5.31825848]
[1717783888035,120.0,160.39,160.34,5.31825848]
[1717783888340,10.0,160.47,160.34,5.31825848]
[1717783888341,120.0,160.4,160.34,5.31825848]
[1717783888536,120.0,160.36,160.34,5.31825848]
[1717783888848,120.0,160.42,160.34,5.31825848]
[1717783889659,120.0,160.48,160.34,5.31825848]
[1717783889822,120.0,160.47,160.34,5.31825848]
[1717783890027,120.0,160.5,160.34,5.31825848]
[1717783890249,120.0,160.51,160.34,5.31825848]
[1717783890552,120.0,160.52,160.34,5.31825848]
[1717783890760,120.0,160.56,160.34,5.31825848]
[1717783891052,120.0,160.55,160.34,5.31825848]
[1717783891235,120.0,160.53,160.34,5.31825848]
[1717783891445,120.0,160.51,160.34,5.31825848]
[1717783891628,120.0,160.47,160.34,5.31825848]
[1717783891828,120.0,160.45,160.34,5.31825848]
[1717783892052,120.0,160.43,160.34,5.31825848]
[1717783892352,120.0,160.39,160.34,5.31825848]
[1717783892735,120.0,160.43,160.34,5.31825848]
[1717783894054,120.0,160.39,160.34,5.31825848]
[1717783894756,120.0,160.35,160.18,0.823968]
[1717783894930,120.0,160.37,160.18,0.823968]
[1717783895354,131.747548,160.39,160.18,0.823968]
[1717783895654,3.99821824,160.35,160.18,0.823968]
[1717783896529,120.0,160.34,160.18,0.823968]
[1717783896737,120.0,160.3,160.18,0.823968]
[1717783896941,3.99821824,160.35,160.18,0.823968]
[1717783896942,120.0,160.31,160.18,0.823968]
[1717783897155,3.99821824,160.35,160.18,0.823968]
[1717783897156,120.0,160.32,160.18,0.823968]
[1717783897369,120.0,160.34,160.18,0.823968]
[1717783897732,3.99821824,160.35,160.18,0.823968]
[1717783898331,11.747548,160.39,160.18,0.823968]
[1717783898332,3.99821824,160.38,160.18,0.823968]
[1717783898539,120.0,160.36,160.18,0.823968]
[1717783899046,11.747548,160.39,160.18,0.823968]
[1717783899047,120.0,160.27,160.18,0.823968]
[1717783899267,120.0,160.29,160.18,0.823968]
[1717783899455,120.0,160.32,160.18,0.823968]
[1717783899756,120.0,160.36,160.18,0.823968]
[1717783899962,120.0,160.34,160.18,0.823968]
[1717783900136,120.0,160.33,160.18,0.823968]
[1717783900442,11.747548,160.39,160.18,0.823968]
[1717783900443,120.0,160.32,160.18,0.823968]
[1717783900652,120.0,160.34,160.18,0.823968]
[1717783901335,120.0,160.32,160.18,0.823968]
[1717783902257,120.0,160.29,160.18,0.823968]
[1717783902645,120.0,160.3,160.18,0.823968]
[1717783902848,120.0,160.25,160.18,0.823968]
[1717783903048,120.0,160.24,160.18,0.823968]
[1717783903559,120.0,160.19,160.18,0.823968]
[1717783905334,130.0,160.19,160.18,0.823968]
[1717783905744,120.0,160.19,160.18,0.823968]
[1717783905960,136.132,160.19,160.18,0.823968]
[1717783906261,120.0,160.05,159.86,40.06840173]
[1717783906450,120.0,160.03,159.86,40.06840173]
[1717783907253,120.0,160.03,159.86,0.823968]
[1717783907851,120.0,160.07,159.88,15.8663]
[1717783908159,120.0,160.08,159.88,15.8663]
[1717783908378,120.0,160.06,159.88,15.8663]
[1717783908669,120.0,160.09,159.88,15.8663]
[1717783908880,10.0,160.23,159.88,15.8663]
[1717783908881,120.0,160.08,159.88,15.8663]
[1717783909161,120.0,160.04,159.88,15.8663]
[1717783909365,120.0,160.07,159.88,15.8663]
[1717783909557,22.1483,160.3,159.88,15.8663]
[1717783909558,120.0,160.1,159.88,15.8663]
[1717783909745,120.0,160.1,159.88,25.8663]
[1717783910472,120.0,160.08,159.88,25.8663]
[1717783910842,120.0,160.13,159.88,25.8663]
[1717783911047,120.0,160.08,159.88,15.8663]
[1717783911240,120.0,160.04,159.88,15.8663]
[1717783912271,120.0,160.03,159.88,15.8663]
[1717783912656,120.0,160.03,159.86,0.823968]
[1717783913863,136.0735,160.03,159.86,0.823968]
[1717783914050,120.0,159.93,159.86,0.823968]
[1717783914253,10.0,159.99,159.86,0.823968]
[1717783914254,120.0,159.99,159.86,0.823968]
[1717783914467,124.74314878,160.03,159.86,0.823968]
[1717783915044,120.0,160.01,159.86,0.823968]
[1717783915369,120.0,159.99,159.86,0.823968]
[1717783915579,120.0,160.01,159.86,0.823968]
[1717783915951,4.74314878,160.03,159.86,0.823968]
[1717783915952,120.0,159.97,159.86,0.823968]
[1717783916163,120.0,160.0,159.86,0.823968]
[1717783916377,120.0,160.02,159.86,0.823968]
[1717783916554,4.74314878,160.03,159.86,0.823968]
[1717783916754,4.74314878,160.03,159.87,10.0]
[1717783916967,4.74314878,160.03,159.91,6.4622]
[1717783917868,4.74314878,160.03,159.95,10.0]
[1717783918047,4.74314878,160.03,159.91,16.4622]
[1717783918249,4.74314878,160.03,159.91,6.4622]
[1717783919066,4.74314878,160.03,159.86,0.823968]
[1717783919556,4.74314878,160.03,159.87,10.0]
[1717783919751,4.74314878,160.03,159.86,0.823968]
[1717783919948,4.74314878,160.03,159.87,10.0]
[1717783920148,10.0,160.23,159.87,10.0]
[1717783920149,4.74314878,160.02,159.87,10.0]
[1717783920563,4.74314878,160.02,159.86,0.823968]
[1717783921167,4.74314878,160.02,159.86,10.823968]
[1717783921368,4.74314878,160.02,159.87,6.5458]
[1717783921542,10.0,160.23,159.87,16.5458]
[1717783921543,120.0,160.12,159.87,16.5458]
[1717783921746,120.0,160.06,159.87,6.5458]
[1717783922047,6.2667,160.25,159.87,6.5458]
[1717783922048,120.0,160.13,159.87,6.5458]
[1717783922380,10.0,160.24,159.87,6.5458]
[1717783922381,31.84199927,160.23,159.87,6.5458]
[1717783922684,120.0,160.16,159.9,10.0]
[1717783922853,10.0,160.24,159.87,6.5458]
[1717783922854,120.0,160.14,159.91,10.0]
[1717783923050,120.0,160.14,159.87,11.1745]
[1717783923051,10.0,160.24,159.93,10.0]
[1717783923259,6.3224,160.35,159.95,10.0]
[1717783923260,120.0,160.18,159.95,10.0]
[1717783923465,120.0,160.15,159.92,15.264]
[1717783923773,120.0,160.18,159.92,15.264]
[1717783923950,120.0,160.14,159.92,15.264]
[1717783924146,120.0,160.11,159.92,15.264]
[1717783924449,0.09723455,160.01,159.92,15.264]
[1717783925170,15.264,160.04,159.92,15.264]
[1717783925553,120.0,160.18,159.93,0.87620092]
[1717783925745,120.0,160.2,159.96,10.0]
[1717783925974,16.235,160.34,159.93,0.87620092]
[1717783925975,15.264,160.14,159.99,10.0]
[1717783926169,15.264,160.14,159.94,10.0]
[1717783926471,15.264,160.14,159.96,10.0]
[1717783926660,15.264,160.14,159.97,5.3298]
[1717783927376,120.0,160.13,159.97,5.3298]
[1717783927555,120.0,160.12,159.97,5.3298]
[1717783927754,15.264,160.14,159.97,5.3298]
[1717783927975,120.0,160.09,159.97,5.3298]
[1717783928151,120.0,160.11,159.97,5.3298]
[1717783928356,120.0,160.09,159.97,5.3298]
[1717783928554,120.0,160.04,159.92,15.264]
[1717783928748,120.0,160.06,159.92,15.264]
[1717783929249,15.264,160.14,159.92,15.264]
[1717783929879,15.264,160.14,159.95,2.3131]
[1717783930046,15.264,160.14,159.96,2.313]
[1717783930253,120.0,160.25,160.0,6.4141]
[1717783930453,120.0,160.23,160.0,6.4141]
[1717783930669,10.0,160.34,160.0,6.4141]
[1717783930670,120.0,160.21,160.0,6.4141]
[1717783931162,19.891,160.22,160.0,6.4141]
[1717783931562,120.0,160.19,160.0,6.4141]
[1717783931791,120.0,160.21,160.0,6.4141]
[1717783931975,19.891,160.22,160.0,6.4141]
[1717783932361,19.891,160.22,160.02,10.0]
[1717783932564,30.00589638,160.36,160.11,10.0]
[1717783932565,20.00589638,160.36,160.11,10.0]
[1717783932781,120.0,160.31,160.07,25.8703]
[1717783933084,10.0,160.28,160.07,15.8703]
[1717783933677,10.0,160.28,160.08,2.3113]
[1717783933881,10.0,160.28,160.07,15.8703]
[1717783933882,10.0,160.28,160.12,10.0]
[1717783934078,10.0,160.28,160.14,10.0]
[1717783934382,120.0,160.43,160.18,10.0]
[1717783934551,120.0,160.4,160.18,10.0]
[1717783934752,24.976269,160.37,160.18,10.0]
[1717783934952,144.976269,160.37,160.12,10.0]
[1717783935485,144.976269,160.37,160.11,0.04000003]
[1717783935486,120.0,160.3,160.11,0.04000003]
[1717783935686,120.0,160.33,160.11,0.04000003]
[1717783936000,120.0,160.26,160.11,0.04000003]
[1717783936281,120.0,160.21,160.11,0.04000003]
[1717783936455,34.976269,160.37,160.11,0.04000003]
[1717783936456,120.0,160.17,160.11,0.04000003]
[1717783936654,120.0,160.15,160.11,0.04000003]
[1717783936887,120.0,160.12,160.11,0.04000003]
[1717783937257,10.0,160.24,160.11,0.04000003]
[1717783937258,120.0,160.14,160.11,0.04000003]
[1717783937465,120.0,160.12,160.11,0.04000003]
[1717783937765,126.0824,160.12,160.11,0.04000003]
[1717783937978,120.0,160.01,159.86,17.419268]
[1717783938274,120.0,159.95,159.86,0.823968]
[1717783938477,120.0,159.99,159.86,0.823968]
[1717783938781,10.0,160.1,159.86,0.823968]
[1717783938782,120.0,160.03,159.86,0.823968]
[1717783939782,120.0,159.87,159.86,0.823968]
[1717783940376,120.0,159.89,159.86,0.823968]
[1717783940665,120.0,159.87,159.86,0.823968]
[1717783941066,120.0,159.91,159.86,0.823968]
[1717783941267,120.0,159.98,159.86,0.823968]
[1717783941557,10.0,160.03,159.86,0.823968]
[1717783941558,120.0,159.9,159.86,0.823968]
[1717783941866,120.0,159.98,159.86,0.823968]
[1717783942071,23.99629032,160.17,159.87,15.5554]
[1717783942253,10.43761981,160.23,159.87,15.5554]
[1717783942254,120.0,160.07,159.87,15.5554]
[1717783942452,10.0,160.21,159.87,15.5554]
[1717783942788,120.0,160.13,159.87,15.5554]
[1717783942997,120.0,160.18,159.88,12.3141]
[1717783943158,120.0,160.15,159.9,10.0]
[1717783943474,120.0,160.19,159.9,10.0]
[1717783943682,6.2093,160.23,159.9,10.0]
[1717783943683,120.0,160.15,159.92,10.0]
[1717783943996,120.0,160.17,159.89,10.0]
[1717783944159,6.2093,160.23,159.87,25.5554]
[1717783944160,120.0,160.13,159.87,25.5554]
[1717783944481,120.0,160.13,159.87,15.5554]
[1717783944687,120.0,160.06,159.87,15.5554]
[1717783944987,120.0,160.04,159.86,0.823968]
[1717783945171,120.0,160.06,159.86,0.823968]
[1717783945376,120.0,160.01,159.86,0.823968]
[1717783946066,10.0,160.14,159.86,0.823968]
[1717783946067,120.0,160.03,159.86,0.823968]
[1717783946260,120.0,159.97,159.86,0.823968]
[1717783946585,120.0,159.95,159.86,0.823968]
[1717783946754,10.0,160.14,159.86,0.823968]
[1717783946959,120.0,160.04,159.86,0.823968]
[1717783947471,10.0,160.14,159.86,0.823968]
[1717783947684,120.0,159.99,159.86,0.823968]
[1717783948065,120.0,160.01,159.86,0.823968]
[1717783948657,4.22831981,160.05,159.86,0.823968]
[1717783950187,124.22831981,160.05,159.86,0.823968]
[1717783950365,4.22831981,160.05,159.86,0.823968]
[1717783950591,120.0,160.04,159.86,0.823968]
[1717783950981,120.0,160.03,159.86,0.823968]
[1717783951979,4.22831981,160.05,160.0,128.0]
[1717783952210,120.0,160.03,160.0,128.0]
[1717783952394,4.22831981,160.05,160.0,128.0]
[1717783954479,120.0,160.15,160.01,2.0772]
[1717783954682,120.0,160.17,160.01,2.0772]
[1717783954984,120.0,160.15,160.0,128.0]
[1717783955208,19.91543015,160.25,160.0,128.0]
[1717783955505,120.0,160.07,160.0,128.0]
[1717783955677,120.0,160.03,160.0,128.0]
[1717783955884,120.0,160.06,160.0,128.0]
[1717783956189,120.0,160.11,160.0,128.0]
[1717783956378,120.0,160.08,160.0,128.0]
[1717783956579,10.0,160.24,160.0,128.0]
[1717783956779,120.0,160.11,160.0,127.6898]
[1717783957288,120.0,160.13,160.0,127.6898]
[1717783957607,10.0,160.24,160.0,127.6898]
[1717783957811,120.0,160.11,160.0,127.6898]
[1717783958106,120.0,160.15,160.0,127.6898]
[1717783958407,120.0,160.12,160.0,127.6898]
[1717783959005,120.0,160.14,160.0,127.6898]
[1717783959213,0.04,160.16,160.01,14.5154]
[1717783960924,120.0,160.15,160.0,127.6898]
[1717783961101,0.04,160.16,160.0,127.6898]
[1717783962228,20.83191126,160.29,160.0,127.6898]
[1717783962229,120.0,160.27,160.03,2.312]
[1717783962401,120.0,160.31,160.07,10.0]
[1717783962606,120.0,160.29,160.07,10.0]
[1717783962803,120.0,160.3,160.05,10.0]
[1717783963009,120.0,160.24,160.01,2.0364]
[1717783963523,120.0,160.26,160.01,2.0364]
[1717783963739,120.0,160.22,160.01,2.0364]
[1717783963909,120.0,160.24,160.01,2.0364]
[1717783964332,120.0,160.22,160.01,2.0364]
[1717783964521,120.0,160.2,160.01,2.0364]
[1717783964726,120.0,160.16,160.01,2.0364]
[1717783964944,120.0,160.14,160.01,2.0364]
[1717783965123,120.0,160.23,160.01,2.0364]
[1717783965432,120.0,160.2,160.01,2.0364]
[1717783965597,120.0,160.23,160.01,2.0364]
[1717783966021,120.0,160.2,160.01,2.0364]
[1717783966229,120.0,160.18,160.01,2.0364]
[1717783966729,120.0,160.17,160.01,2.0364]
[1717783966903,120.0,160.15,160.01,2.0364]
[1717783967209,120.0,160.23,160.01,2.0364]
[1717783967624,120.0,160.18,160.01,2.0364]
[1717783967868,120.0,160.2,160.01,2.0364]
[1717783968304,120.0,160.18,160.01,2.0364]
[1717783968504,120.0,160.16,160.01,2.0364]
[1717783968728,120.0,160.2,160.01,2.0364]
[1717783968913,120.0,160.22,160.01,2.0364]
[1717783969106,120.0,160.26,160.01,2.0364]
[1717783969529,120.0,160.25,160.01,2.0364]
[1717783970125,120.0,160.23,160.01,2.0364]
[1717783970625,120.0,160.21,160.01,2.0364]
[1717783970832,120.0,160.25,160.01,2.0364]
[1717783971004,387.5,160.33,160.01,2.0364]
[1717783971005,120.0,160.23,160.01,2.0364]
[1717783971207,120.0,160.25,160.01,2.0364]
[1717783971422,120.0,160.29,160.01,2.0364]
[1717783971615,20.93064056,160.32,160.01,2.0364]
[1717783971616,20.93064056,160.32,160.07,10.0]
[1717783971814,144.976269,160.37,160.1,2.3109]
[1717783972027,144.976269,160.37,160.05,11.5585]
[1717783972028,24.976269,160.37,160.12,10.0]
[1717783972324,24.976269,160.37,160.13,2.0364]
[1717783972543,144.976269,160.37,160.13,2.0364]
[1717783972733,24.976269,160.37,160.13,2.0364]
[1717783972916,24.976269,160.37,160.17,10.0]
[1717783973124,24.976269,160.37,160.19,10.0]
[1717783973309,24.976269,160.37,160.14,14.4754]
[1717783973516,120.0,160.35,160.14,14.4754]
[1717783973708,120.0,160.33,160.14,14.4754]
[1717783974034,120.0,160.17,160.0,127.6898]
[1717783974411,120.0,160.23,160.0,127.6898]
[1717783974729,6.3522,160.32,160.0,127.6898]
[1717783974730,120.0,160.19,160.0,127.6898]
[1717783975035,6.3522,160.32,160.0,127.6898]
[1717783975036,120.0,160.2,160.0,127.6898]
[1717783975734,120.0,160.17,160.0,127.6898]
[1717783975930,120.0,160.15,160.0,127.6898]
[1717783976228,120.0,160.19,160.0,127.6898]
[1717783977119,120.0,160.25,160.0,127.6898]
[1717783977315,20.20916564,160.31,160.0,137.6898]
[1717783977316,120.0,160.27,160.0,137.6898]
[1717783977633,20.20916564,160.31,160.0,140.0021]
[1717783977816,120.0,160.28,160.03,10.0]
[1717783978005,120.0,160.26,160.0,127.6898]
[1717783978329,120.0,160.24,160.01,10.0]
[1717783978532,120.0,160.24,160.0,127.6898]
[1717783978722,120.0,160.26,160.0,137.6898]
[1717783978922,120.0,160.3,160.0,137.6898]
[1717783979111,120.0,160.28,160.04,16.5118]
[1717783979510,120.0,160.25,160.04,16.5118]
[1717783980008,22.4205,160.21,160.0,127.6898]
[1717783980208,120.0,160.04,160.0,127.6898]
[1717783980428,120.0,160.09,160.0,127.6898]
[1717783980733,120.0,160.13,160.0,127.6898]
[1717783980910,25.026824,160.09,160.0,127.6898]
[1717783981112,120.0,160.04,160.0,127.6898]
[1717783981321,120.0,160.02,160.0,127.6898]
[1717783981618,120.0,160.07,160.0,127.6898]
[1717783981817,25.026824,160.09,160.0,127.6898]
[1717783982542,22.4205,160.21,160.0,127.6898]
[1717783982749,145.017598,160.18,160.0,127.6898]
[1717783982912,25.017598,160.18,160.0,127.6898]
[1717783983546,120.0,160.14,160.0,127.6898]
[1717783983718,120.0,160.12,160.0,127.6898]
[1717783983914,120.0,160.09,160.0,127.6898]
[1717783984137,120.0,160.11,160.0,127.6898]
[1717783984320,120.0,160.13,160.0,127.6898]
[1717783984512,25.017598,160.18,160.0,127.6898]
[1717783984715,120.0,160.13,160.0,127.6898]
[1717783984918,120.0,160.15,160.0,127.6898]
[1717783985117,120.0,160.11,160.0,127.6898]
[1717783985343,120.0,160.09,160.0,127.6898]
[1717783985757,120.0,160.14,160.0,127.6898]
[1717783985922,120.0,160.11,160.0,127.6898]
[1717783986117,120.0,160.05,160.0,127.6898]
[1717783986336,120.0,160.1,160.0,127.6898]
[1717783986540,25.017598,160.18,160.0,127.6898]
[1717783986541,120.0,160.08,160.0,127.6898]
[1717783986917,120.0,160.13,160.0,127.6898]
[1717783987116,120.0,160.07,160.0,127.6898]
[1717783987319,120.0,160.09,160.0,127.6898]
[1717783987514,120.0,160.07,160.0,127.6898]
[1717783987949,120.0,160.06,160.0,127.6898]
[1717783988326,120.0,160.03,160.0,127.6898]
[1717783988744,120.0,160.01,160.0,127.6898]
[1717783989043,126.0148,160.01,160.0,127.6898]
[1717783989377,141.8956,160.01,160.0,57.6902]
[1717783989525,130.0,160.01,160.0,57.6902]
[1717783989842,130.0,160.01,160.0,11.0238]
[1717783989843,136.3345,160.01,160.0,11.0238]
[1717783990056,160.0,160.01,160.0,4.2018]
[1717783990622,150.0,160.01,160.0,4.2018]
[1717783990820,160.0,160.01,160.0,4.2018]
[1717783991521,130.0,159.87,159.67,0.03895141]
[1717783992323,120.0,159.87,159.67,0.03895141]
[1717783993417,128.48025773,159.87,159.67,0.03895141]
[1717783993637,120.0,159.87,159.67,0.03895141]
[1717783993928,150.0,159.87,159.67,0.03895141]
[1717783994743,158.45737619,159.87,159.67,0.03895141]
[1717783994960,128.45799764,159.87,159.67,0.03895141]
[1717783995137,120.0,159.87,159.67,0.03895141]
[1717783995327,120.0,159.65,159.58,16.08319505]
[1717783995658,120.0,159.6,159.58,16.08319505]
[1717783996547,130.0,159.6,159.58,13.50179505]
[1717783996859,120.0,159.59,159.58,13.50179505]
[1717783997262,150.0,159.59,159.58,13.50179505]
[1717783997869,120.0,159.59,159.58,13.50179505]
[1717783998357,150.0,159.59,159.58,13.50179505]
[1717783998670,150.0,159.59,159.54,0.823968]
[1717783998671,130.0,159.55,159.54,0.823968]
[1717783999851,160.0,159.55,159.54,0.823968]
[1717784001547,120.0,159.39,159.38,0.823968]
[1717784002171,150.0,159.39,159.38,0.823968]
[1717784002651,120.0,159.39,159.38,0.823968]
[1717784003073,150.0,159.39,159.38,0.823968]
[1717784003443,30.0,159.39,159.38,0.823968]
[1717784004079,150.0,159.39,159.38,0.823968]
[1717784004859,120.0,159.39,159.38,0.823968]
[1717784005067,130.0,159.39,159.38,0.823968]
[1717784005574,160.0,159.39,159.38,0.823968]
[1717784005776,197.5,159.39,159.38,0.823968]
[1717784005977,160.0,159.39,159.38,0.823968]
[1717784006472,21.19897879,159.42,159.17,22.41952967]
[1717784006473,120.0,159.18,159.17,22.31926253]
[1717784006774,120.0,159.18,159.17,22.24746253]
[1717784006947,120.0,159.18,159.17,0.186928]
[1717784007546,150.0,159.18,159.17,0.186928]
[1717784008346,149.9737856,159.18,159.17,0.186928]
[1717784008544,120.0,159.04,159.0,12.18096]
[1717784008877,120.0,159.02,159.0,12.18096]
[1717784009068,120.0,159.11,159.03,22.0769]
[1717784009272,120.0,159.14,159.03,22.0769]
[1717784009564,387.5,159.44,159.03,22.0769]
[1717784009565,120.0,159.13,159.03,22.0769]
[1717784009884,120.0,159.17,159.03,22.0769]
[1717784010180,120.0,159.14,159.03,22.0769]
[1717784010475,120.0,159.1,159.03,22.0769]
[1717784010678,120.0,159.08,159.04,22.0769]
[1717784010882,120.0,159.06,159.0,5.92076]
[1717784011054,120.0,159.08,159.0,5.92076]
[1717784011253,120.0,159.07,159.0,5.92076]
[1717784011474,120.0,159.04,159.0,12.18096]
[1717784011681,120.0,159.08,159.01,6.2602]
[1717784011875,120.0,159.07,159.0,5.92076]
[1717784012050,120.0,159.09,159.0,5.92076]
[1717784012375,120.0,159.1,159.0,5.92076]
[1717784012570,120.0,159.16,159.0,5.92076]
[1717784012760,30.69041723,159.26,159.0,5.92076]
[1717784012761,120.0,159.11,159.0,5.92076]
[1717784012962,120.0,159.1,159.0,5.92076]
[1717784013159,120.0,159.03,159.01,22.704]
[1717784013355,120.0,159.03,159.02,6.6389]
[1717784013674,20.69041723,159.26,159.0,5.92076]
[1717784013675,120.0,159.01,159.0,5.92076]